bitfinex/quotes_BTCUSD_20240918
["timestamp","ask_amount","ask_price","bid_price","bid_amount"]
[1726630927979,0.001823,60741.0,60740.0,2.65498559]
[1726630928193,0.001823,60741.0,60740.0,2.72267977]
[1726630928407,0.001823,60741.0,60740.0,2.65498559]
[1726630928864,0.001823,60741.0,60740.0,2.7280259]
[1726630929086,0.001823,60741.0,60740.0,2.0280259]
[1726630929505,0.001823,60741.0,60740.0,1.99833616]
[1726630929938,0.001823,60741.0,60740.0,2.00033616]
[1726630930137,0.001823,60741.0,60740.0,2.0300259]
[1726630932141,8.201e-05,60741.0,60740.0,2.0300259]
[1726630932348,8.201e-05,60741.0,60740.0,2.0280259]
[1726630932796,0.000823,60746.0,60742.0,1.087774]
[1726630933033,0.000823,60746.0,60745.0,0.26316689]
[1726630933266,0.000823,60746.0,60745.0,0.52622056]
[1726630934391,0.000823,60746.0,60745.0,1.52795556]
[1726630934823,0.000823,60746.0,60745.0,1.54195556]
[1726630936091,0.000823,60746.0,60745.0,2.00814479]
[1726630936568,0.000823,60746.0,60745.0,2.1762851]
[1726630936795,0.000823,60746.0,60745.0,2.1782851]
[1726630937206,0.000823,60746.0,60745.0,2.10524479]
[1726630937625,0.000823,60746.0,60745.0,2.05289097]
[1726630937841,0.000823,60746.0,60745.0,1.99321874]
[1726630938119,0.000823,60746.0,60745.0,2.04187813]
[1726630938314,0.000823,60746.0,60745.0,2.03987813]
[1726630939582,0.000823,60746.0,60745.0,2.04187813]
[1726630940406,0.000823,60746.0,60745.0,2.03987813]
[1726630942244,0.000823,60746.0,60745.0,2.04187813]
[1726630942507,0.000823,60746.0,60745.0,2.03987813]
[1726630942710,0.000823,60746.0,60745.0,2.03988019]
[1726630943516,0.000823,60746.0,60745.0,2.02588019]
[1726630944173,0.000823,60746.0,60745.0,2.01188019]
[1726630944426,0.000823,60746.0,60745.0,2.02588019]
[1726630944636,0.000823,60746.0,60745.0,2.01188019]
[1726630944849,0.000823,60746.0,60745.0,2.02588019]
[1726630946163,0.000823,60746.0,60745.0,2.01188019]
[1726630946379,0.000823,60746.0,60745.0,1.97721874]
[1726630946603,0.000823,60746.0,60745.0,1.89267385]
[1726630946865,0.000823,60746.0,60745.0,1.99121874]
[1726630947103,0.000823,60746.0,60745.0,1.97721874]
[1726630947335,0.000823,60746.0,60745.0,2.06421092]
[1726630947806,0.000823,60746.0,60745.0,2.06429187]
[1726630948017,0.000823,60746.0,60745.0,2.03993645]
[1726630948484,0.000823,60746.0,60745.0,1.99121874]
[1726630948669,0.000823,60746.0,60745.0,1.56687374]
[1726630948875,0.000823,60746.0,60745.0,1.61559957]
[1726630949086,0.000823,60746.0,60745.0,1.4921365]
[1726630949297,0.000823,60746.0,60745.0,1.59068139]
[1726630949522,0.000823,60746.0,60745.0,1.54195556]
[1726630950392,0.000823,60746.0,60745.0,1.59068139]
[1726630951276,0.000823,60746.0,60745.0,1.54195556]
[1726630952385,0.000823,60746.0,60745.0,1.61502869]
[1726630953502,0.000823,60746.0,60745.0,1.54195556]
[1726630953715,0.000823,60746.0,60745.0,1.11416567]
[1726630953931,0.000823,60746.0,60745.0,1.54195556]
[1726630954152,0.000823,60746.0,60745.0,0.69505237]
[1726630954383,0.000823,60746.0,60745.0,0.72041189]
[1726630954628,0.000823,60746.0,60745.0,1.04965689]
[1726630955509,0.000823,60746.0,60745.0,1.09845361]
[1726630955976,0.000823,60746.0,60745.0,1.26150728]
[1726630956448,0.000823,60746.0,60745.0,1.21271056]
[1726630956929,0.000823,60746.0,60745.0,1.28589593]
[1726630957675,0.000823,60746.0,60745.0,1.28604774]
[1726630959098,0.000823,60746.0,60745.0,1.65987374]
[1726630959621,0.12082262,60762.0,60745.0,1.65987374]
[1726630959622,0.0039874,60786.0,60767.0,0.02491818]
[1726630959860,0.30206209,60777.0,60767.0,1.55167413]
[1726630960086,0.30206209,60777.0,60776.0,1.0447749]
[1726630960087,0.05508956,60777.0,60776.0,1.0447749]
[1726630960351,0.00258231,60777.0,60776.0,1.53690557]
[1726630961605,0.00258231,60777.0,60776.0,1.60993457]
[1726630962122,0.00258231,60777.0,60776.0,1.66129567]
[1726630962355,0.00258231,60777.0,60776.0,1.65092628]
[1726630962651,0.00258231,60777.0,60776.0,1.60226667]
[1726630962910,0.00258231,60777.0,60776.0,0.94623001]
[1726630963164,0.00258231,60777.0,60776.0,0.97423001]
[1726630963433,0.00258231,60777.0,60776.0,0.96023001]
[1726630963948,0.00258231,60777.0,60776.0,0.028]
[1726630964189,0.00258231,60777.0,60776.0,0.014]
[1726630964693,0.00258231,60777.0,60773.0,0.164545]
[1726630964952,0.00258231,60777.0,60776.0,0.028]
[1726630964953,0.01970635,60777.0,60776.0,0.028]
[1726630965183,0.00258231,60777.0,60776.0,0.014]
[1726630965403,0.01970635,60777.0,60776.0,0.014]
[1726630965622,0.00258231,60777.0,60776.0,0.014]
[1726630965847,0.01970635,60777.0,60776.0,0.178538]
[1726630966044,0.00258231,60777.0,60776.0,0.178538]
[1726630966316,0.00258231,60777.0,60776.0,0.164538]
[1726630966555,0.01977763,60777.0,60776.0,0.167538]
[1726630966802,0.01977763,60777.0,60776.0,0.16635359]
[1726630966803,0.00258231,60777.0,60776.0,0.16635359]
[1726630967041,0.00258231,60777.0,60776.0,0.17035359]
[1726630967319,0.00258231,60777.0,60776.0,0.49943059]
[1726630967551,0.00258231,60777.0,60776.0,0.16635359]
[1726630967799,0.00258231,60777.0,60776.0,0.50443059]
[1726630968042,0.00258231,60777.0,60776.0,0.17335359]
[1726630968520,0.00258231,60777.0,60776.0,0.50243059]
[1726630968764,0.00258231,60777.0,60776.0,0.17335359]
[1726630968986,0.00258231,60777.0,60776.0,0.17935359]
[1726630969242,0.00258231,60777.0,60776.0,0.17035359]
[1726630969478,0.00258231,60777.0,60776.0,0.16435359]
[1726630969725,0.00258231,60777.0,60776.0,0.50843059]
[1726630970524,0.00258231,60777.0,60776.0,0.49943059]
[1726630970770,0.00258231,60777.0,60776.0,0.50843059]
[1726630971922,0.00258231,60777.0,60776.0,0.009]
[1726630972186,0.164532,60779.0,60777.0,0.91733773]
[1726630972470,0.00677225,60780.0,60777.0,0.91733773]
[1726630972717,0.18211757,60778.0,60777.0,0.91733773]
[1726630972957,0.02172284,60779.0,60777.0,0.91733773]
[1726630973184,0.01758831,60778.0,60777.0,0.91733773]
[1726630973636,0.86881607,60778.0,60777.0,0.91733773]
[1726630973884,0.63565007,60778.0,60777.0,0.91733773]
[1726630974631,0.63565007,60778.0,60777.0,0.92433773]
[1726630975141,0.63565007,60778.0,60777.0,0.92933773]
[1726630975142,0.65865007,60778.0,60777.0,0.92933773]
[1726630975630,0.65865007,60778.0,60777.0,0.92433773]
[1726630975865,0.65865007,60778.0,60777.0,0.91733773]
[1726630976104,0.65865007,60778.0,60777.0,0.92433773]
[1726630976408,0.65865007,60778.0,60777.0,0.91733773]
[1726630979551,0.32958407,60778.0,60777.0,0.91733773]
[1726630980037,0.65865007,60778.0,60777.0,0.91733773]
[1726630983261,0.32958407,60778.0,60777.0,0.91733773]
[1726630983475,0.65865007,60778.0,60777.0,0.91733773]
[1726630984414,0.65947307,60778.0,60777.0,0.91733773]
[1726630986120,0.33040707,60778.0,60777.0,0.91733773]
[1726630986567,0.65947307,60778.0,60777.0,0.91733773]
[1726630988023,0.16587407,60778.0,60777.0,0.91733773]
[1726630988233,0.33040707,60778.0,60777.0,0.91733773]
[1726630988450,0.01841131,60778.0,60777.0,1.84001473]
[1726630988663,0.000823,60778.0,60777.0,1.23978662]
[1726630988870,0.000823,60778.0,60777.0,1.51094373]
[1726630989115,0.000823,60778.0,60777.0,1.84001473]
[1726630989796,0.000823,60778.0,60777.0,1.84101473]
[1726630990006,0.000823,60778.0,60777.0,1.84001473]
[1726630990486,0.000823,60778.0,60777.0,1.84601473]
[1726630990747,0.000823,60778.0,60777.0,1.84001473]
[1726630990963,0.000823,60778.0,60777.0,1.85001473]
[1726630991185,0.000823,60778.0,60777.0,1.85401473]
[1726630991624,0.000823,60778.0,60777.0,1.85001473]
[1726630991911,0.000823,60778.0,60777.0,1.85801473]
[1726630992335,0.000823,60778.0,60777.0,1.85001473]
[1726630992773,0.000823,60778.0,60777.0,1.84801473]
[1726630992986,0.000823,60778.0,60777.0,1.85901473]
[1726630993204,0.000823,60778.0,60777.0,2.18808573]
[1726630993420,0.000823,60778.0,60777.0,2.17708573]
[1726630993638,0.000823,60778.0,60777.0,2.18908573]
[1726630994098,0.000823,60778.0,60777.0,2.18108573]
[1726630994316,0.000823,60778.0,60777.0,2.17808573]
[1726630994760,0.000823,60778.0,60777.0,2.19108573]
[1726630995456,0.000823,60778.0,60777.0,2.18208573]
[1726630995678,0.000823,60778.0,60777.0,2.3591394]
[1726630996109,0.000823,60778.0,60777.0,2.3461394]
[1726630996324,0.000823,60778.0,60777.0,2.3601394]
[1726630996531,0.000823,60778.0,60777.0,2.3461394]
[1726630997221,0.000823,60778.0,60777.0,2.18308573]
[1726630997459,0.000823,60778.0,60777.0,2.19708573]
[1726630997704,0.000823,60778.0,60777.0,2.19873173]
[1726630997962,0.000823,60778.0,60777.0,2.00558936]
[1726630998203,0.000823,60778.0,60777.0,2.01958936]
[1726630998653,0.000823,60778.0,60777.0,1.86966073]
[1726630998870,0.000823,60778.0,60777.0,1.54058973]
[1726630999624,0.000823,60778.0,60777.0,1.52658973]
[1726630999823,0.000823,60778.0,60777.0,1.19751873]
[1726631000123,0.000823,60778.0,60777.0,1.54058973]
[1726631000692,0.000823,60778.0,60777.0,1.52658973]
[1726631001116,0.000823,60778.0,60777.0,1.54058973]
[1726631001725,0.000823,60778.0,60777.0,2.0194357]
[1726631003656,0.000823,60778.0,60777.0,2.51156037]
[1726631004643,0.000823,60778.0,60777.0,2.49756037]
[1726631004897,0.000823,60778.0,60777.0,2.51156037]
[1726631005143,0.000823,60778.0,60777.0,2.49756037]
[1726631005583,0.000823,60778.0,60777.0,2.51156037]
[1726631006222,0.000823,60778.0,60777.0,2.49756037]
[1726631006652,0.000823,60778.0,60777.0,2.51156037]
[1726631007332,0.000823,60778.0,60777.0,2.49756037]
[1726631007791,0.000823,60778.0,60777.0,2.54631881]
[1726631008034,0.000823,60778.0,60777.0,2.56031881]
[1726631008754,0.000823,60778.0,60777.0,2.54631881]
[1726631008985,0.000823,60778.0,60777.0,2.51156037]
[1726631009229,0.000823,60778.0,60777.0,2.56031881]
[1726631009480,0.000823,60778.0,60777.0,2.51156037]
[1726631009715,0.000823,60778.0,60777.0,2.56031881]
[1726631009950,0.000823,60778.0,60777.0,2.54631881]
[1726631010192,0.000823,60778.0,60777.0,2.64461881]
[1726631010425,0.000823,60778.0,60777.0,2.64464192]
[1726631010665,0.000823,60778.0,60777.0,2.63064192]
[1726631010900,0.000823,60778.0,60777.0,2.65864192]
[1726631011135,0.000823,60778.0,60777.0,2.64464192]
[1726631011369,0.000823,60778.0,60777.0,2.65864192]
[1726631013259,0.000823,60778.0,60777.0,2.64464192]
[1726631013511,0.000823,60778.0,60777.0,3.13553701]
[1726631013767,0.000823,60778.0,60777.0,3.02415912]
[1726631014005,0.000823,60778.0,60777.0,3.09925912]
[1726631014253,0.005,60782.0,60781.0,1.76265363]
[1726631014480,0.005,60782.0,60781.0,2.04554275]
[1726631015030,0.005,60782.0,60781.0,1.9237073]
[1726631015670,0.005,60782.0,60781.0,2.0211462]
[1726631015883,0.005,60782.0,60781.0,1.9237073]
[1726631016097,0.005,60782.0,60781.0,1.8937073]
[1726631016319,0.005,60782.0,60781.0,1.99111749]
[1726631016524,0.005,60782.0,60781.0,2.02111749]
[1726631016755,0.005,60782.0,60781.0,1.52613886]
[1726631016992,0.005,60782.0,60781.0,1.47743869]
[1726631017235,0.005,60782.0,60781.0,1.42872867]
[1726631018113,0.005,60782.0,60781.0,1.41472867]
[1726631018341,0.005,60782.0,60781.0,1.44272867]
[1726631018582,0.005,60782.0,60781.0,1.42872867]
[1726631018803,0.005,60782.0,60781.0,0.507575]
[1726631019019,0.005,60782.0,60781.0,0.850625]
[1726631019659,0.005,60782.0,60781.0,0.836625]
[1726631019905,0.005,60782.0,60781.0,0.850625]
[1726631020347,0.005,60782.0,60781.0,0.836625]
[1726631020784,0.005,60782.0,60781.0,0.99967867]
[1726631021268,0.005,60782.0,60781.0,1.01367867]
[1726631021489,0.005823,60782.0,60781.0,1.01367867]
[1726631022998,0.005823,60782.0,60781.0,0.850625]
[1726631023861,0.005823,60782.0,60781.0,1.34272867]
[1726631024996,0.005823,60782.0,60781.0,1.32872867]
[1726631025643,0.005823,60782.0,60781.0,1.34272867]
[1726631026118,0.005823,60782.0,60781.0,1.44272867]
[1726631026332,0.005823,60782.0,60781.0,1.09967867]
[1726631026789,0.005823,60782.0,60781.0,1.11367867]
[1726631027444,0.005823,60782.0,60781.0,1.08567867]
[1726631027663,0.005823,60782.0,60781.0,1.09967867]
[1726631027924,0.005823,60782.0,60781.0,0.950625]
[1726631028136,0.005823,60782.0,60781.0,0.922625]
[1726631028336,0.005823,60782.0,60781.0,0.936625]
[1726631029045,0.005823,60782.0,60781.0,0.507575]
[1726631029257,0.005823,60782.0,60781.0,0.836625]
[1726631030108,0.005823,60782.0,60781.0,0.850625]
[1726631031567,0.005823,60782.0,60781.0,1.00055363]
[1726631032237,0.005823,60782.0,60781.0,1.4926573]
[1726631033110,0.005823,60782.0,60781.0,1.4786573]
[1726631033950,0.005823,60782.0,60781.0,1.4926573]
[1726631034863,0.005823,60782.0,60781.0,1.5926573]
[1726631035077,0.005823,60782.0,60781.0,1.69013455]
[1726631035289,0.005823,60782.0,60781.0,1.80302843]
[1726631035553,0.005823,60782.0,60781.0,1.7054573]
[1726631035751,0.005823,60782.0,60781.0,1.82742122]
[1726631035958,0.005823,60782.0,60781.0,1.83706538]
[1726631037075,0.005823,60782.0,60781.0,1.81342122]
[1726631037282,0.005823,60782.0,60781.0,1.76942122]
[1726631037495,0.005823,60782.0,60781.0,1.6614573]
[1726631037700,0.005823,60782.0,60781.0,1.79742122]
[1726631038355,0.000823,60782.0,60781.0,1.79742122]
[1726631038981,0.000823,60782.0,60781.0,1.78342122]
[1726631039191,0.000823,60782.0,60781.0,1.79742122]
[1726631039630,0.000823,60782.0,60781.0,1.5786573]
[1726631040079,0.000823,60782.0,60781.0,1.6902184]
[1726631040313,0.000823,60782.0,60781.0,1.66583661]
[1726631040825,0.000823,60782.0,60781.0,1.5926573]
[1726631041688,5.46e-06,60782.0,60781.0,1.5926573]
[1726631042366,5.46e-06,60782.0,60781.0,1.66583661]
[1726631042825,5.46e-06,60782.0,60781.0,1.5926573]
[1726631044237,5.46e-06,60782.0,60781.0,1.66584305]
[1726631044452,5.46e-06,60782.0,60781.0,1.5926573]
[1726631044668,5.46e-06,60782.0,60781.0,1.66584312]
[1726631044878,5.46e-06,60782.0,60781.0,1.5926573]
[1726631045102,5.46e-06,60782.0,60781.0,1.66584367]
[1726631045302,5.46e-06,60782.0,60781.0,1.5926573]
[1726631045521,5.46e-06,60782.0,60781.0,1.66585297]
[1726631045771,5.46e-06,60782.0,60781.0,1.5926573]
[1726631046958,5.46e-06,60782.0,60781.0,1.5943033]
[1726631047393,5.46e-06,60782.0,60781.0,1.1652533]
[1726631047597,5.46e-06,60782.0,60781.0,1.23846024]
[1726631048416,5.46e-06,60782.0,60781.0,1.56751024]
[1726631049244,5.46e-06,60782.0,60781.0,1.4943033]
[1726631049457,5.46e-06,60782.0,60781.0,1.1652533]
[1726631049934,5.46e-06,60782.0,60781.0,1.18694418]
[1726631052093,5.46e-06,60782.0,60781.0,0.75952678]
[1726631052315,5.46e-06,60782.0,60781.0,1.18694418]
[1726631061267,5.46e-06,60782.0,60781.0,1.11369207]
[1726631062196,5.46e-06,60782.0,60781.0,1.30406044]
[1726631062396,5.46e-06,60782.0,60781.0,1.21136044]
[1726631062808,5.46e-06,60782.0,60781.0,1.11369207]
[1726631063019,5.46e-06,60782.0,60781.0,1.21142732]
[1726631063227,5.46e-06,60782.0,60781.0,1.44274207]
[1726631064077,5.46e-06,60782.0,60781.0,1.47274207]
[1726631064286,5.46e-06,60782.0,60781.0,1.59482754]
[1726631064695,5.46e-06,60782.0,60781.0,1.47274207]
[1726631065364,5.46e-06,60782.0,60781.0,1.74444207]
[1726631066327,5.46e-06,60782.0,60781.0,1.7543315]
[1726631067176,5.46e-06,60782.0,60781.0,3.26039207]
[1726631067404,5.46e-06,60782.0,60781.0,3.32340316]
[1726631067626,5.46e-06,60782.0,60781.0,3.39987387]
[1726631067869,5.46e-06,60782.0,60781.0,3.51501681]
[1726631068122,5.46e-06,60782.0,60781.0,3.50101681]
[1726631068355,5.46e-06,60782.0,60781.0,3.71725007]
[1726631068591,5.46e-06,60782.0,60781.0,3.73125007]
[1726631068848,5.46e-06,60782.0,60781.0,3.70325007]
[1726631069076,5.46e-06,60782.0,60781.0,3.70324456]
[1726631069326,5.46e-06,60782.0,60781.0,3.55164941]
[1726631069580,5.46e-06,60782.0,60781.0,3.32117541]
[1726631069887,0.00646199,60793.0,60781.0,3.32117541]
[1726631069888,0.24697253,60829.0,60828.0,0.217397]
[1726631070143,0.24697253,60829.0,60828.0,1.444782]
[1726631070400,0.000823,60838.0,60832.0,0.951935]
[1726631070664,0.000823,60838.0,60832.0,1.43028813]
[1726631070875,0.000823,60838.0,60832.0,1.43018768]
[1726631071352,0.00018,60850.0,60842.0,0.95169955]
[1726631071629,0.00018,60850.0,60842.0,1.29433235]
[1726631071863,0.00018,60850.0,60842.0,0.45731322]
[1726631072093,0.00018,60850.0,60842.0,0.5769928]
[1726631072572,0.00018,60850.0,60842.0,0.4126328]
[1726631072845,0.00018,60850.0,60842.0,0.16305367]
[1726631073103,0.164519,60850.0,60842.0,0.16305367]
[1726631073333,0.164344,60848.0,60842.0,0.16305367]
[1726631073563,0.00028045,60850.0,60842.0,0.16305367]
[1726631073564,0.00028045,60850.0,60842.0,0.17505367]
[1726631074066,0.00010045,60849.0,60842.0,0.17505367]
[1726631074550,0.164345,60848.0,60842.0,0.18405367]
[1726631074759,0.00010045,60849.0,60842.0,0.18405367]
[1726631074961,0.00010045,60848.0,60842.0,0.18405367]
[1726631075433,0.16444445,60848.0,60842.0,0.18405367]
[1726631075653,0.00010045,60848.0,60842.0,0.18405367]
[1726631076107,0.00952923,60843.0,60842.0,0.18405367]
[1726631076337,0.000823,60843.0,60842.0,0.34841367]
[1726631076600,0.000823,60843.0,60842.0,0.35170035]
[1726631076828,0.000823,60843.0,60842.0,0.68042035]
[1726631077068,0.000823,60843.0,60842.0,0.18734035]
[1726631077292,0.000823,60843.0,60842.0,0.18405367]
[1726631077744,0.17388623,60843.0,60842.0,0.18405367]
[1726631077973,0.00952923,60843.0,60842.0,0.18405367]
[1726631080050,0.493894,60843.0,60842.0,0.18405367]
[1726631080286,0.00952923,60843.0,60842.0,0.18405367]
[1726631080700,0.33824323,60843.0,60842.0,0.18405367]
[1726631080930,0.92661423,60843.0,60842.0,0.17505367]
[1726631081345,0.59790023,60843.0,60842.0,0.16705367]
[1726631081592,0.26918623,60843.0,60842.0,0.17205367]
[1726631081829,0.26918623,60843.0,60842.0,0.16805367]
[1726631082536,0.59790023,60843.0,60842.0,0.16805367]
[1726631082952,0.59790023,60843.0,60842.0,0.16305367]
[1726631083163,0.32872,60842.0,60829.0,0.32879]
[1726631083375,0.25440836,60843.0,60830.0,0.16305367]
[1726631083376,0.14957913,60838.0,60830.0,0.16305367]
[1726631083587,0.328754,60836.0,60830.0,0.16305367]
[1726631083795,0.164389,60831.0,60830.0,0.16305367]
[1726631083996,0.493168,60831.0,60830.0,0.16305367]
[1726631084209,0.17327391,60831.0,60830.0,0.16305367]
[1726631084659,0.17327391,60831.0,60830.0,0.16805367]
[1726631084858,0.00888491,60831.0,60830.0,0.18105367]
[1726631085062,0.00888491,60831.0,60830.0,0.17605367]
[1726631085303,0.164386,60833.0,60830.0,0.17605367]
[1726631085482,0.164386,60833.0,60830.0,0.18705367]
[1726631085693,0.00888118,60832.0,60830.0,0.18705367]
[1726631085892,0.17326918,60832.0,60830.0,0.18705367]
[1726631086094,0.00888118,60832.0,60830.0,0.18705367]
[1726631086302,0.328762,60835.0,60830.0,0.17405367]
[1726631086303,0.164385,60833.0,60830.0,0.17405367]
[1726631086522,0.00888118,60832.0,60830.0,0.17405367]
[1726631086726,0.00888118,60832.0,60831.0,0.164389]
[1726631086928,0.00010045,60838.0,60831.0,0.164389]
[1726631086929,0.16438,60835.0,60831.0,0.16305367]
[1726631087132,0.16438,60835.0,60832.0,0.16305367]
[1726631087547,0.00010045,60838.0,60832.0,0.16305367]
[1726631087751,0.164379,60835.0,60832.0,0.16305367]
[1726631088627,0.164375,60837.0,60832.0,0.16305367]
[1726631088836,0.00010045,60838.0,60832.0,0.16905367]
[1726631088837,0.164377,60836.0,60832.0,0.16905367]
[1726631089052,0.164384,60833.0,60832.0,0.16905367]
[1726631089277,0.328748,60837.0,60832.0,0.16905367]
[1726631089511,0.16438,60835.0,60832.0,0.16905367]
[1726631089741,0.16438,60835.0,60832.0,0.17405367]
[1726631089954,0.00010045,60838.0,60832.0,0.17405367]
[1726631090163,0.164376,60836.0,60832.0,0.16305367]
[1726631090375,0.164379,60835.0,60832.0,0.17805367]
[1726631090593,0.164379,60835.0,60832.0,0.16705367]
[1726631091051,0.493123,60837.0,60832.0,0.16937389]
[1726631091261,0.00010045,60838.0,60832.0,0.33675889]
[1726631091477,0.164376,60836.0,60832.0,0.17237389]
[1726631092040,0.328751,60837.0,60832.0,0.17537389]
[1726631092253,0.16438,60835.0,60832.0,0.17537389]
[1726631092460,0.328751,60837.0,60832.0,0.16637389]
[1726631092461,0.00010045,60837.0,60832.0,0.16637389]
[1726631092670,0.16438,60835.0,60832.0,0.16637389]
[1726631092887,0.00010045,60837.0,60832.0,0.16637389]
[1726631092888,0.164382,60834.0,60832.0,0.16637389]
[1726631093094,0.164384,60833.0,60832.0,0.17137389]
[1726631093304,0.164384,60833.0,60832.0,0.005]
[1726631093545,0.47842858,60837.0,60821.0,0.02989955]
[1726631093752,0.31396313,60833.0,60832.0,0.009]
[1726631093960,0.64273113,60833.0,60832.0,0.009]
[1726631094172,0.164393,60830.0,60823.0,0.328821]
[1726631094414,0.164393,60830.0,60825.0,0.164405]
[1726631094631,0.328749,60837.0,60825.0,0.164405]
[1726631094632,0.00018,60850.0,60849.0,0.19424055]
[1726631094861,0.00018,60850.0,60849.0,0.52292255]
[1726631095090,0.00018,60850.0,60849.0,0.85160455]
[1726631095537,0.00018,60850.0,60849.0,0.493023]
[1726631095753,0.00018,60850.0,60849.0,0.821705]
[1726631096178,0.00018,60850.0,60849.0,0.493023]
[1726631096393,0.00018,60850.0,60849.0,0.821705]
[1726631096613,0.00018,60850.0,60849.0,0.825705]
[1726631096848,0.00018,60850.0,60849.0,0.497023]
[1726631097064,0.00018,60850.0,60849.0,0.66007667]
[1726631097298,0.00018,60850.0,60849.0,0.66207667]
[1726631099183,0.00018,60850.0,60849.0,1.80102222]
[1726631099453,0.00018,60850.0,60849.0,2.00835197]
[1726631099937,0.00018,60850.0,60849.0,1.94860135]
[1726631100188,0.00018,60850.0,60849.0,1.9703907]
[1726631100457,0.012,60867.0,60866.0,0.95137455]
[1726631100673,0.012,60867.0,60866.0,1.11442822]
[1726631100889,0.012,60867.0,60866.0,0.98452867]
[1726631101540,0.4845211,60888.0,60866.0,1.53741822]
[1726631101758,0.4845211,60888.0,60887.0,0.492715]
[1726631102036,0.4845211,60888.0,60887.0,0.16305367]
[1726631102932,0.4845211,60888.0,60881.0,0.328507]
[1726631103154,0.31382213,60886.0,60882.0,0.16305367]
[1726631103383,0.14957913,60886.0,60882.0,0.16305367]
[1726631103601,0.164245,60885.0,60882.0,0.16305367]
[1726631103817,0.164245,60885.0,60871.0,0.02989955]
[1726631103818,0.00010045,60879.0,60866.0,0.026]
[1726631104058,0.00010045,60879.0,60869.0,0.328569]
[1726631104275,0.00010045,60877.0,60873.0,0.164275]
[1726631104494,0.00010045,60877.0,60872.0,0.164278]
[1726631104726,0.00010045,60877.0,60872.0,0.32733167]
[1726631104936,0.164269,60876.0,60872.0,0.16305367]
[1726631105168,0.00010045,60877.0,60872.0,0.32733067]
[1726631105594,0.16436645,60877.0,60872.0,0.32733067]
[1726631105803,0.16436645,60877.0,60872.0,0.16305367]
[1726631106285,0.00010045,60877.0,60872.0,0.32733067]
[1726631106534,0.16436545,60877.0,60872.0,0.32733067]
[1726631106768,0.164271,60875.0,60872.0,0.16305367]
[1726631107016,0.16436645,60877.0,60872.0,0.15979642]
[1726631107266,0.00010045,60877.0,60872.0,0.16379642]
[1726631107509,0.164271,60875.0,60872.0,0.16879642]
[1726631107763,0.16436645,60877.0,60872.0,0.16479642]
[1726631108030,0.164263,60878.0,60872.0,0.17679642]
[1726631108297,0.164267,60877.0,60872.0,0.34107442]
[1726631108561,0.164261,60879.0,60873.0,0.164276]
[1726631108823,0.164261,60879.0,60874.0,0.16305367]
[1726631109075,0.00010045,60880.0,60874.0,0.16305367]
[1726631109338,0.164261,60879.0,60874.0,0.16305367]
[1726631109613,0.164263,60878.0,60874.0,0.16305367]
[1726631110012,0.00010045,60880.0,60878.0,0.164262]
[1726631110224,0.00010045,60880.0,60876.0,0.164266]
[1726631110647,0.16435845,60880.0,60874.0,0.33060973]
[1726631110927,0.00010045,60880.0,60874.0,0.17033873]
[1726631111145,0.00010045,60880.0,60874.0,0.16405367]
[1726631111361,0.00010045,60880.0,60874.0,0.16305367]
[1726631111485,0.164264,60878.0,60874.0,0.16305367]
[1726631111906,0.00010045,60865.0,60857.0,0.04812894]
[1726631112196,0.002,60875.0,60857.0,0.04812894]
[1726631112197,0.16441645,60858.0,60857.0,0.04812894]
[1726631112413,0.97126158,60858.0,60857.0,0.04812894]
[1726631112652,0.9789517,60858.0,60857.0,0.04812894]
[1726631113137,1.3075847,60858.0,60857.0,0.04812894]
[1726631113367,0.1573697,60858.0,60857.0,0.04812894]
[1726631113609,0.1593697,60858.0,60857.0,0.04812894]
[1726631113848,0.69255477,60858.0,60857.0,0.04812894]
[1726631114097,0.69255477,60858.0,60854.0,0.09625789]
[1726631114098,0.16442545,60855.0,60854.0,0.09625789]
[1726631114330,0.67132729,60855.0,60854.0,0.09625789]
[1726631114556,0.68228245,60854.0,60848.0,0.14438684]
[1726631114781,1.02871357,60854.0,60848.0,0.14438684]
[1726631114997,1.03622806,60854.0,60848.0,0.14438684]
[1726631115229,0.95721477,60854.0,60848.0,0.14438684]
[1726631115658,1.28586977,60854.0,60848.0,0.14438684]
[1726631115868,1.28556977,60854.0,60848.0,0.14438684]
[1726631116099,0.95621477,60854.0,60848.0,0.14438684]
[1726631116533,0.95621477,60854.0,60853.0,0.12132237]
[1726631116765,1.28456977,60854.0,60853.0,0.12232237]
[1726631116973,1.28386977,60854.0,60853.0,0.12232237]
[1726631117189,1.28386977,60854.0,60853.0,0.12132237]
[1726631117580,1.28376977,60854.0,60853.0,0.02032237]
[1726631117826,0.61691545,60850.0,60848.0,0.14438684]
[1726631118073,0.30645469,60850.0,60848.0,0.14438684]
[1726631118315,0.31409165,60850.0,60848.0,0.14438684]
[1726631118545,0.31389165,60850.0,60848.0,0.14438684]
[1726631118785,0.64256865,60850.0,60848.0,0.14438684]
[1726631119012,0.31439165,60850.0,60848.0,0.14438684]
[1726631119241,0.67006865,60850.0,60848.0,0.14438684]
[1726631119463,0.67006865,60850.0,60849.0,0.002642]
[1726631119464,0.99874565,60850.0,60849.0,0.002642]
[1726631119688,0.80816445,60849.0,60832.0,0.1670792]
[1726631119906,0.18745445,60844.0,60833.0,0.24649363]
[1726631120130,0.023,60843.0,60833.0,0.24649363]
[1726631120358,0.22455751,60834.0,60832.0,0.004644]
[1726631120850,0.00743469,60833.0,60832.0,0.004644]
[1726631121075,0.023,60841.0,60832.0,0.004644]
[1726631121301,0.02007211,60840.0,60832.0,0.004644]
[1726631121550,0.023,60839.0,60832.0,0.004644]
[1726631121779,0.023,60839.0,60832.0,0.010644]
[1726631121780,0.0202072,60838.0,60832.0,0.010644]
[1726631122002,0.02767508,60838.0,60832.0,0.010644]
[1726631122913,0.02767508,60838.0,60832.0,0.013644]
[1726631123140,0.02767508,60838.0,60832.0,0.004644]
[1726631123376,0.02767508,60838.0,60832.0,0.009644]
[1726631123597,0.02767508,60838.0,60832.0,0.005644]
[1726631123840,0.02767508,60838.0,60832.0,0.004644]
[1726631124065,0.02767508,60838.0,60832.0,0.001644]
[1726631124066,0.00010045,60833.0,60832.0,0.001644]
[1726631124516,0.00742313,60833.0,60832.0,0.001644]
[1726631124727,0.00010045,60833.0,60832.0,0.001644]
[1726631124972,0.0074381,60833.0,60832.0,0.001644]
[1726631125168,0.53686498,60833.0,60832.0,0.001644]
[1726631125405,0.21543463,60833.0,60832.0,0.001644]
[1726631125623,0.54420263,60833.0,60832.0,0.002644]
[1726631125852,0.54420263,60833.0,60828.0,0.001]
[1726631125853,0.49328545,60829.0,60828.0,0.001]
[1726631126065,0.53743846,60829.0,60828.0,0.001]
[1726631126307,0.5447235,60829.0,60828.0,0.001]